bitfinex/quotes_ETHUSD_20250406
["timestamp","ask_amount","ask_price","bid_price","bid_amount"]
[1743982117440,6.42141,1557.3,1556.8,6.42336]
[1743982117740,9.42137,1557.3,1556.5,1.6219]
[1743982117947,6.42302,1556.9,1556.5,1.6219]
[1743982118253,6.42496,1556.5,1556.2,1.596]
[1743982118454,3.0,1556.7,1556.1,0.02]
[1743982118455,6.42581,1556.3,1556.1,0.02]
[1743982118658,6.42511,1556.4,1556.1,0.02]
[1743982118853,6.42549,1556.3,1556.1,0.02]
[1743982119056,1.5177,1556.5,1556.1,0.02]
[1743982119226,6.42551,1556.3,1556.1,0.02]
[1743982119433,6.0,1556.6,1556.3,6.42533]
[1743982119743,12.42446,1556.6,1556.1,6.44628]
[1743982119906,9.42385,1556.7,1556.3,6.42542]
[1743982120112,6.42459,1556.6,1556.1,6.99607]
[1743982120312,6.42459,1556.6,1556.2,6.42571]
[1743982120530,9.4239,1556.7,1556.2,6.42571]
[1743982120757,6.42425,1556.6,1556.2,6.42571]
[1743982121054,6.42468,1556.5,1556.1,0.02]
[1743982121253,9.4248,1556.5,1556.1,0.02]
[1743982121456,12.90161936,1556.8,1556.1,0.02]
[1743982121457,3.0,1556.6,1556.1,0.02]
[1743982121615,6.42411,1556.7,1556.2,6.42575]
[1743982121816,4.5775,1557.0,1556.3,0.06424964]
[1743982122054,3.0,1556.7,1556.3,7.13861541]
[1743982122261,12.42253,1557.1,1556.6,8.04875]
[1743982122427,6.42377,1556.8,1556.4,1.5743]
[1743982122946,7.98579,1556.8,1556.3,7.07437196]
[1743982123119,6.42331,1556.9,1556.4,8.74608005]
[1743982123321,6.0,1557.4,1556.5,0.55]
[1743982123520,12.42032,1557.6,1557.1,6.42204]
[1743982123742,12.84069,1557.6,1557.1,12.84403]
[1743982123918,6.42081,1557.5,1557.1,6.42202]
[1743982124125,1.601,1557.8,1557.1,0.642202]
[1743982124126,8.02048,1557.8,1557.1,0.642202]
[1743982124344,6.41987,1557.7,1557.2,7.94142]
[1743982124544,1.601,1557.8,1556.7,9.42368]
[1743982124545,6.42068,1557.5,1557.0,6.42233]
[1743982124720,1.601,1557.8,1557.0,6.9726]
[1743982124721,6.41976,1557.7,1557.0,6.9726]
[1743982124922,6.41976,1557.7,1557.2,12.84295]
[1743982125245,2.07456487,1557.8,1557.2,2.804195]
[1743982125552,6.42185,1557.2,1556.9,1.5431]
[1743982125757,3.0,1557.2,1556.6,1.6638]
[1743982125959,3.0,1557.2,1556.8,6.42328]
[1743982126166,3.0,1557.2,1556.8,6.4234]
[1743982126315,9.42192,1557.2,1556.8,6.4234]
[1743982126654,6.42226,1557.1,1556.7,6.42369]
[1743982126857,3.0,1557.1,1556.7,7.874847]
[1743982127181,12.8458,1557.0,1556.6,1.6638]
[1743982127359,6.42358,1556.8,1556.3,7.99713]
[1743982127539,6.42412,1556.7,1556.3,1.5717]
[1743982127737,3.0,1556.8,1556.4,6.42487]
[1743982127945,9.42357,1556.8,1556.3,14.42252]
[1743982128144,6.42408,1556.7,1556.3,3.013952]
[1743982128348,6.42349,1556.8,1556.3,9.439432]
[1743982128515,12.84724,1556.8,1556.3,15.864612]
[1743982128719,6.42386,1556.7,1556.3,9.439262]
[1743982128946,6.42349,1556.8,1556.3,15.864612]
[1743982129129,6.42397,1556.7,1556.3,15.864582]
[1743982129336,8.03499,1557.2,1556.7,6.42344]
[1743982129530,6.42233,1557.1,1556.6,6.42403]
[1743982129719,6.42325,1556.9,1556.4,8.0113482]
[1743982129944,6.42374,1556.8,1556.4,1.5864582]
[1743982130128,6.42374,1556.8,1556.4,6.42493]
[1743982130338,6.42274,1557.0,1556.3,7.99717]
[1743982130523,3.0,1556.9,1556.6,6.42417]
[1743982130724,6.0,1557.1,1556.8,6.42328]
[1743982131021,12.84221,1557.4,1556.9,7.065158]
[1743982131254,6.42103,1557.4,1557.0,6.42246]
[1743982131422,6.42141,1557.3,1556.9,0.642328]
[1743982131763,6.4219,1557.2,1556.9,0.642328]
[1743982131920,7.99833,1557.5,1556.6,1.6051]
[1743982131921,12.84294,1557.3,1556.6,1.6051]
[1743982132121,9.42123,1557.4,1557.0,6.4226]
[1743982132326,6.42144,1557.3,1556.8,6.42335]
[1743982132540,12.4204,1557.6,1557.1,6.42181]
[1743982132754,16.78775,1557.7,1557.3,6.42123]
[1743982132951,6.42049,1557.6,1557.2,6.42165]
[1743982133153,13.95186,1558.2,1557.4,1.5164]
[1743982133460,6.41825,1558.1,1557.6,6.42]
[1743982133689,7.9516,1558.2,1557.6,1.284054]
[1743982133973,6.0,1558.6,1557.9,8.07787]
[1743982133974,6.41642,1558.5,1557.9,8.07787]
[1743982134266,6.41729,1558.3,1557.9,1.6592]
[1743982134427,3.0,1558.4,1557.9,1.6592]
[1743982134627,15.83412,1558.4,1557.9,8.07796]
[1743982134859,12.83401,1558.4,1557.9,9.527633]
[1743982135030,6.41691,1558.4,1557.9,9.527433]
[1743982135233,7.93954,1558.6,1558.1,6.41784]
[1743982135448,14.3558,1558.6,1558.1,6.41784]
[1743982135760,6.41604,1558.6,1558.1,6.41784]
[1743982135968,6.41648,1558.5,1558.2,0.641784]
[1743982136262,3.0,1558.8,1558.0,6.41847]
[1743982136464,6.41708,1558.4,1557.9,8.07798]
[1743982136669,6.41765,1558.3,1557.9,1.6592]
[1743982136832,3.0,1558.3,1557.9,8.07781]
[1743982137038,3.0,1558.3,1557.6,1.5693]
[1743982137239,6.41918,1557.9,1557.6,1.5693]
[1743982137560,12.83727,1558.0,1557.5,6.42028]
[1743982137750,6.41914,1557.9,1557.4,7.99011]
[1743982137957,15.83724,1558.0,1557.5,6.4204]
[1743982138155,12.83818,1557.9,1557.4,7.99007]
[1743982138352,3.0,1557.8,1557.0,6.4226]
[1743982138565,6.42071,1557.5,1557.1,6.42217]
[1743982138772,6.42099,1557.4,1557.0,12.84499]
[1743982138966,12.84148,1557.5,1557.0,7.858969]
[1743982139138,6.42069,1557.5,1557.0,14.281389]
[1743982139331,6.42018,1557.6,1557.1,6.42204]
[1743982139669,6.42018,1557.6,1557.1,12.84397]
[1743982139838,6.42018,1557.6,1557.1,6.42197]
[1743982140038,6.42055,1557.5,1557.1,14.2720649]
[1743982140462,6.41973,1557.7,1557.3,6.42118]
[1743982140663,6.41973,1557.7,1557.1,1.4281149]
[1743982140664,6.42013,1557.6,1557.1,1.4281149]
[1743982140873,6.42127,1557.4,1557.0,6.42246]
[1743982141079,6.42125,1557.4,1556.9,14.36665]
[1743982141288,6.41972,1557.7,1556.9,1.5208]
[1743982141289,6.42137,1557.3,1556.9,1.5208]
[1743982141510,3.0,1557.2,1556.5,1.5027]
[1743982141784,6.4259,1556.2,1556.1,0.02]
[1743982141955,9.4259,1556.2,1556.1,0.02]
[1743982142479,12.575139,1556.2,1556.1,0.02]
[1743982142683,13.04753896,1556.2,1556.1,0.02]
[1743982142880,9.4259,1556.2,1556.1,0.02]
[1743982143584,16.77843,1556.6,1556.1,0.02]
[1743982143585,10.354,1556.6,1556.1,0.02]
[1743982143879,16.77836,1556.6,1556.1,0.02]
[1743982144057,6.4259,1556.2,1556.1,0.02]
[1743982144258,7.9948,1556.2,1556.1,0.02]
[1743982144464,19.04609132,1556.2,1556.1,0.02]
[1743982144689,19.04609132,1556.2,1555.1,0.02]
[1743982144690,6.43004,1555.2,1555.1,0.02]
[1743982145379,6.42979,1555.3,1555.1,0.02]
[1743982145584,7.99114,1555.5,1555.1,0.02]
[1743982145782,6.43004,1555.2,1555.1,0.02]
[1743982146157,6.42999,1555.3,1555.1,0.02]
[1743982146349,6.43004,1555.2,1555.1,0.02]
[1743982146551,10.354,1555.6,1555.1,0.02]
[1743982146552,1.5389,1556.0,1555.1,0.02]
[1743982146755,6.42827,1555.7,1555.2,1.6436]
[1743982146981,6.42919,1555.5,1555.2,1.6436]
[1743982147187,3.0,1555.6,1555.2,1.6436]
[1743982147559,6.42795,1555.8,1555.2,1.6436]
[1743982147763,6.42757,1555.8,1555.3,6.49391518]
[1743982147964,1.5389,1556.0,1555.2,1.6436]
[1743982148287,6.42798,1555.7,1555.2,8.07345]
[1743982148499,6.4288,1555.5,1555.2,1.6436]
[1743982148700,6.4288,1555.5,1555.1,0.02]
[1743982148993,6.42926,1555.4,1555.1,0.02]
[1743982149191,6.42963,1555.3,1555.1,0.02]
[1743982149501,6.43004,1555.2,1555.1,0.02]
[1743982149996,9.43004,1555.2,1555.1,0.02]
[1743982151306,11.016007,1555.2,1555.1,0.02]
[1743982151500,8.03365,1555.1,1555.0,6.65745853]
[1743982151691,17.5158625,1555.1,1555.0,6.65745853]
[1743982152385,18.0658625,1555.1,1555.0,6.65745853]
[1743982152586,26.89016277,1555.1,1555.0,8.53e-06]
[1743982152792,6.43417,1554.2,1554.1,0.02]
[1743982153398,9.43417,1554.2,1554.1,0.02]
[1743982154096,22.20028332,1554.2,1554.1,0.02]
[1743982154296,22.20028332,1554.2,1553.4,1.5339]
[1743982154297,6.43645,1553.7,1553.4,1.5339]
[1743982154461,12.87302,1553.7,1553.4,1.5339]
[1743982154663,12.87121,1553.9,1553.4,7.9712]
[1743982154915,12.87121,1553.9,1553.4,9.412101]
[1743982155076,6.4359,1553.8,1553.4,9.412101]
[1743982155279,6.43653,1553.7,1553.4,1.5339]
[1743982155474,6.43653,1553.7,1553.1,1.5539]
[1743982155475,6.21611332,1553.6,1553.1,1.5539]
[1743982155663,6.43743,1553.5,1553.1,1.5539]
[1743982156012,23.26822332,1553.4,1552.8,19.97237561]
[1743982156197,6.4395,1553.0,1552.8,19.97237561]
[1743982156395,6.43876,1553.1,1552.8,19.97237561]
[1743982156599,9.43795,1553.3,1552.8,19.97237561]
[1743982156904,6.93220352,1553.2,1552.8,21.96961317]
[1743982157080,6.43855,1553.2,1552.8,26.41234561]
[1743982157275,9.4371,1553.5,1552.8,19.97237561]
[1743982157506,0.478254,1553.6,1553.1,1.6049]
[1743982157707,18.18571332,1553.7,1553.1,1.6049]
[1743982157708,6.43709,1553.5,1553.1,8.04361]
[1743982157912,12.87381,1553.6,1553.1,8.04348]
[1743982158107,6.43733,1553.5,1553.1,1.6049]
[1743982158331,10.355,1553.7,1553.3,6.43785]
[1743982158485,12.87119,1553.9,1553.4,6.43725]
[1743982158677,1.5435,1554.0,1553.5,6.43674]
[1743982158678,6.43503,1554.0,1553.5,6.43674]
[1743982158877,6.43503,1554.0,1553.6,7.94858]
[1743982158878,0.49128811,1554.0,1553.6,7.94858]
[1743982159095,10.355,1554.4,1553.6,1.5122]
[1743982159294,10.355,1554.4,1554.1,6.4345]
[1743982159525,6.43253,1554.6,1554.2,7.94636]
[1743982159704,6.43253,1554.6,1554.2,1.5122]
[1743982160012,6.43219,1554.7,1554.2,14.38005]
[1743982160182,6.43175,1554.8,1554.2,8.74103]
[1743982160380,6.43228,1554.7,1554.2,2.30687]
[1743982160592,6.43284,1554.6,1554.2,1.5122]
[1743982160782,6.43283,1554.6,1554.2,1.5122]
[1743982160989,6.43229,1554.7,1554.3,6.43374]
[1743982161317,12.86467,1554.7,1554.2,7.94636]
[1743982161488,6.43312,1554.5,1554.2,1.5122]
[1743982162303,6.43312,1554.5,1554.2,7.9462]
[1743982162304,0.48833903,1554.5,1554.2,7.9462]
[1743982162502,6.43257,1554.6,1554.2,1.5122]
[1743982162704,12.86447,1554.7,1554.2,7.94634]
[1743982162917,6.43213,1554.7,1554.2,14.38022]
[1743982163232,3.0,1554.7,1554.2,2.950222]
[1743982163388,6.43328,1554.5,1554.2,1.5122]
[1743982163599,6.43348,1554.4,1554.2,1.5122]
[1743982163832,6.43409,1554.3,1553.9,1.5689]
[1743982164125,6.43409,1554.3,1553.9,8.00431]
[1743982164322,6.43409,1554.3,1553.9,1.5689]
[1743982164323,6.43433,1554.2,1553.9,1.5689]
[1743982164529,6.43475,1554.1,1553.9,1.5689]
[1743982164706,12.86862,1554.2,1553.9,1.5689]
[1743982165023,7.6243,1554.4,1553.9,1.5689]
[1743982165222,6.43462,1554.1,1553.9,1.5689]
[1743982165425,12.86949,1554.1,1553.9,1.5689]
[1743982165722,6.92276881,1554.1,1553.9,1.5689]
[1743982165926,6.43528,1554.0,1553.5,8.674894]
[1743982166230,6.43545,1553.9,1553.5,8.674894]
[1743982166726,6.0,1554.1,1553.7,6.43599]
[1743982167026,12.43478,1554.1,1553.7,6.43599]
[1743982167203,6.0,1554.1,1553.8,6.43578]
[1743982167404,6.0,1554.1,1553.9,6.43534]
[1743982167726,6.43378,1554.3,1553.9,6.43523]
[1743982167930,6.43335,1554.4,1554.0,8.02921]
[1743982168107,0.48525121,1554.4,1554.1,6.43441]
[1743982168428,16.78599,1554.5,1554.1,12.86884]
[1743982168727,6.43439,1554.2,1554.0,1.5943]
[1743982169111,6.43459,1554.1,1553.7,1.5161]
[1743982169311,6.43384,1554.3,1553.8,6.43551]
[1743982169498,12.43337,1554.4,1553.9,6.43521]
[1743982169704,12.43337,1554.4,1553.9,6.49977069]
[1743982169899,6.4338,1554.3,1553.9,6.43516]
[1743982170107,6.0,1554.4,1554.0,6.43498]
[1743982170299,6.0,1554.4,1553.8,0.55]
[1743982170300,12.43347,1554.4,1553.8,0.55]
[1743982170497,0.02,1554.9,1554.1,1.5559]
[1743982170816,6.4959789,1554.9,1554.1,7.99035]
[1743982170990,6.43271,1554.6,1554.2,6.43402]
[1743982171201,6.43271,1554.6,1554.2,12.86801]
[1743982171394,12.86367,1554.8,1554.3,6.43361]
[1743982171629,3.0,1554.8,1554.2,6.43412]
[1743982171835,6.4321,1554.7,1554.1,1.5559]
[1743982172046,13.348,1554.6,1554.1,7.99048]
[1743982172211,6.43293,1554.5,1554.1,1.5559]
[1743982172413,6.43293,1554.5,1554.1,7.99028]
[1743982172943,13.348,1554.6,1554.1,1.5559]
[1743982173239,6.43313,1554.5,1554.0,6.43486]
[1743982173543,19.78066,1554.6,1554.2,6.43403]
[1743982173909,26.21341,1554.6,1554.2,6.43403]
[1743982174237,13.348,1554.6,1553.9,8.09916]
[1743982174441,6.43454,1554.2,1553.9,1.6639]
[1743982174638,6.43441,1554.2,1553.9,1.6639]
[1743982175099,6.4333,1554.5,1553.7,1.6566]
[1743982175100,12.86951,1554.1,1553.7,1.6566]
[1743982175300,6.43425,1554.2,1553.7,14.52892]
[1743982175496,6.43425,1554.2,1553.7,14.52884]
[1743982175696,7.67697,1554.4,1553.7,1.6566]
[1743982175697,4.24333,1554.4,1553.7,1.6566]
[1743982175934,6.43489,1554.1,1553.7,1.6566]
[1743982176137,10.344,1554.1,1553.7,1.6566]
[1743982176341,12.87192,1553.8,1553.4,1.5517]
[1743982176556,6.43583,1553.8,1553.1,1.5517]
[1743982176848,6.4385,1553.2,1552.6,1.522]
[1743982177044,16.7815,1553.2,1552.7,6.44038]
[1743982177343,16.78134,1553.2,1552.7,6.44022]
[1743982177536,10.343,1553.2,1552.6,7.96274]
[1743982177827,6.43889,1553.1,1552.6,9.058704]
[1743982178030,6.43876,1553.1,1552.6,9.058704]
[1743982178324,10.343,1553.2,1552.6,2.618274]
[1743982178535,10.342,1553.3,1552.7,0.06438756]
[1743982178837,10.342,1553.3,1552.8,6.43961]
[1743982179133,10.342,1553.3,1552.9,12.94328515]
[1743982179302,10.81445426,1553.3,1553.0,1.5781]
[1743982179508,26.21553,1553.5,1553.0,8.818792]
[1743982179709,12.87544,1553.4,1553.0,2.379852]
[1743982180023,9.43713,1553.5,1553.0,8.818982]
[1743982180227,9.43713,1553.5,1553.1,6.43836]
[1743982180228,10.342,1553.5,1553.1,6.43836]
[1743982180429,10.342,1553.5,1553.1,0.8818212]
[1743982180632,0.48366979,1553.7,1553.2,6.43832]
[1743982180796,10.342,1553.8,1553.1,1.517]
[1743982180995,10.342,1553.8,1553.4,6.43742]
[1743982181426,6.4356,1553.9,1553.4,6.43731]
[1743982181630,6.4356,1553.9,1553.5,1.6465]
[1743982181938,6.43647,1553.7,1553.5,1.6465]
[1743982182153,6.43672,1553.6,1553.3,1.6465]
[1743982182336,6.43684,1553.6,1553.1,1.6465]
[1743982182517,6.43725,1553.5,1553.1,1.6465]
[1743982182703,6.43725,1553.5,1553.1,1.7108778]
[1743982182903,6.43725,1553.5,1553.1,1.6465]
[1743982183117,9.43595,1553.8,1553.1,1.7108778]
[1743982183405,12.87483,1553.5,1553.1,1.6465]
[1743982183745,10.339,1553.5,1553.1,1.6465]
[1743982183934,6.43879,1553.1,1552.8,1.6633]
[1743982184100,0.48463665,1553.4,1552.8,1.6633]
[1743982184303,6.4377,1553.4,1552.9,6.4394]
[1743982184530,6.4377,1553.4,1553.0,6.43914]
[1743982184900,19.77608,1553.5,1553.0,12.87811]
[1743982185138,19.77608,1553.5,1553.1,6.43866]
[1743982185323,16.77608,1553.5,1553.1,0.06437912]
[1743982185523,16.77608,1553.5,1553.1,6.43859]
[1743982185831,16.77408,1553.5,1553.2,1.5851]
[1743982186236,10.337,1553.5,1553.2,1.5851]
[1743982186551,16.77408,1553.5,1553.2,1.5851]
[1743982186732,10.337,1553.5,1553.2,1.5851]
[1743982187051,7.96179,1554.0,1553.5,6.43685]
[1743982187282,6.43565,1553.9,1553.7,1.6665]
[1743982187450,16.77133,1554.0,1553.5,1.6665]
[1743982187625,6.43613,1553.8,1553.5,1.6665]
[1743982188162,6.43666,1553.6,1553.2,7.884381]
[1743982188344,6.43666,1553.6,1553.2,14.38765]
[1743982188544,6.43628,1553.7,1553.3,6.43773]
[1743982188723,6.43591,1553.8,1553.4,6.43723]
[1743982188927,1.5719,1554.3,1553.5,0.06436263]
[1743982189128,6.43733,1553.5,1553.2,1.5113]
[1743982189348,6.43678,1553.6,1553.2,7.94944]
[1743982189538,6.43678,1553.6,1553.2,1.5113]
[1743982189858,12.87634,1553.3,1552.9,9.496301]
[1743982190023,6.43757,1553.4,1552.9,3.056861]
[1743982190222,6.43709,1553.5,1553.1,6.43858]
[1743982190451,6.4375,1553.4,1552.9,14.4815]
[1743982190755,6.43804,1553.3,1552.9,8.04208]
[1743982190955,6.43804,1553.3,1552.9,14.48145]
[1743982191156,6.43804,1553.3,1552.9,1.6026]
[1743982191454,6.43804,1553.3,1552.9,14.48132]
[1743982191455,6.43809,1553.3,1552.9,14.48132]
[1743982191638,6.43758,1553.4,1553.0,12.87807]
[1743982191840,6.43715,1553.5,1553.1,6.4386]
[1743982192365,6.43761,1553.4,1553.0,6.50353129]
[1743982192536,6.43807,1553.3,1552.9,14.4815]
[1743982192746,6.43715,1553.5,1553.1,6.43862]
[1743982192914,0.47193943,1553.6,1553.0,6.5034014]
[1743982193116,9.43707,1553.5,1552.9,1.6026]
[1743982193347,6.44004,1552.8,1552.5,6.44118]
[1743982193571,6.44004,1552.8,1552.3,1.598]
[1743982193572,1.287963,1552.8,1552.3,1.598]
[1743982193769,6.44163,1552.4,1552.1,1.6431]
[1743982194081,6.44167,1552.4,1552.1,1.6431]
[1743982194234,6.44127,1552.5,1552.1,8.08579]
[1743982194431,12.88207,1552.6,1552.1,8.08579]
[1743982194638,6.44001,1552.8,1552.4,6.44144]
[1743982194881,10.329,1552.9,1552.6,1.6532]
[1743982195091,16.76696,1553.3,1552.9,6.43933]
[1743982195369,10.329,1553.3,1552.7,6.44028]
[1743982195548,16.7671,1553.3,1552.9,12.87875]
[1743982195749,16.7671,1553.3,1553.0,6.43908]
[1743982195948,16.7671,1553.3,1552.9,12.87873]
[1743982196150,10.329,1553.3,1553.1,6.43871]
[1743982196656,10.329,1553.3,1553.0,6.43911]
[1743982196863,10.329,1553.3,1553.0,6.43909]
[1743982197063,10.329,1553.3,1553.0,6.439]
[1743982197447,10.329,1553.3,1553.0,12.878]
[1743982197650,10.329,1553.3,1553.1,12.8773]
[1743982197850,10.329,1553.3,1553.2,6.43832]
[1743982198072,10.329,1553.3,1553.1,6.43858]
[1743982198281,16.76712,1553.3,1552.9,6.43939]
[1743982198446,16.76712,1553.3,1552.3,6.44205]
[1743982198447,6.43871,1553.2,1552.3,6.44205]
[1743982198643,9.43881,1553.1,1552.7,6.44023]
[1743982198856,9.43881,1553.1,1552.7,8.08824]
[1743982199179,6.43933,1553.0,1552.7,1.6481]
[1743982199748,9.92798183,1553.1,1552.8,6.43992]
[1743982199970,6.44005,1552.8,1552.4,8.09319]
[1743982200195,6.44056,1552.7,1552.4,1.6518]
[1743982200371,6.44194,1552.4,1552.1,0.02]
[1743982200677,6.44246,1552.2,1552.1,0.02]
[1743982200978,20.85482676,1552.2,1552.1,0.02]
[1743982201282,20.85482676,1552.2,1551.2,6.16]
[1743982201283,6.44525,1551.6,1551.4,1.5958]
[1743982201484,6.44414,1551.8,1551.5,6.44537]
[1743982201779,6.44414,1551.8,1551.4,1.5958]
[1743982201780,12.88959,1551.7,1551.4,1.5958]
[1743982201950,10.325,1551.7,1551.5,6.44514]
[1743982202146,10.324,1552.4,1551.6,1.6636]
[1743982202367,6.0,1552.7,1552.3,6.44205]
[1743982202649,6.44118,1552.6,1552.2,8.10586]
[1743982202843,9.44004,1552.8,1552.4,6.44122]
[1743982203047,11.9414,1552.9,1552.5,6.44107]
[1743982203248,1.5614,1553.2,1552.5,0.644107]
[1743982203448,1.5614,1553.5,1553.1,6.43857]
[1743982203749,0.48786852,1553.3,1552.8,6.43992]
[1743982203962,6.43759,1553.4,1552.9,6.4392]
[1743982204259,6.43755,1553.4,1552.8,0.06438692]
[1743982204471,6.21611332,1553.7,1553.3,6.43755]
[1743982204472,6.43642,1553.7,1553.3,6.43755]
[1743982204671,6.4367,1553.6,1553.2,6.43819]
[1743982204848,11.96,1553.8,1553.2,1.439927]
[1743982204849,8.07389,1553.8,1553.2,1.439927]
[1743982205054,16.77748,1553.9,1553.5,6.4368]
[1743982205284,0.02,1553.9,1553.6,0.55]
[1743982205583,0.02,1553.9,1553.8,6.43583]
[1743982205782,0.02,1553.9,1553.7,6.43624]
[1743982205982,0.02,1553.9,1553.5,1.5916]
[1743982206146,0.02,1553.9,1553.6,6.43666]
[1743982206350,0.02,1553.9,1553.8,6.43583]
[1743982206986,0.02,1553.9,1553.8,7.97183]
[1743982207186,0.02,1553.9,1552.7,1.536]
[1743982207187,6.43726,1553.5,1552.7,1.536]
[1743982207483,6.43668,1553.6,1553.1,6.43853]
[1743982207662,6.43668,1553.6,1553.2,6.43806]
[1743982207982,3.0,1553.6,1553.3,6.43789]
[1743982208181,3.0,1553.6,1553.2,14.42454]
[1743982208383,0.02,1553.9,1553.6,6.43635]
[1743982208687,0.02,1553.9,1553.5,0.06435794]
[1743982208871,6.436,1553.8,1553.4,6.43721]
[1743982209274,0.02,1553.9,1553.3,3.55]
[1743982209472,0.02,1553.9,1553.8,6.43583]
[1743982209791,0.02,1553.9,1553.8,8.07173]
[1743982209954,3.87335078,1554.9,1554.8,7.95169]
[1743982210294,3.87335078,1554.9,1554.8,1.52]
[1743982210702,3.87335078,1554.9,1554.3,6.43372]
[1743982210703,3.87335078,1554.9,1554.5,1.5832]
[1743982210863,6.43169,1554.8,1554.3,6.43358]
[1743982211181,6.4323,1554.7,1554.3,6.43361]
[1743982211382,3.40733508,1554.9,1554.4,6.43303]
[1743982211383,9.83881508,1554.9,1554.4,6.43303]
[1743982211678,6.43188,1554.8,1554.4,6.43333]
[1743982211882,6.43188,1554.8,1554.2,1.5832]
[1743982211883,1.288344,1554.8,1554.3,6.43374]
[1743982212083,6.43353,1554.4,1554.0,6.43497]
[1743982212452,11.08903,1554.6,1554.1,6.43458]
[1743982212453,12.86636,1554.5,1554.1,6.43458]
[1743982212859,12.86636,1554.5,1553.9,1.5527]
[1743982212860,0.47336219,1554.5,1553.9,1.5527]
[1743982213052,6.43336,1554.4,1553.9,7.98796]
[1743982213263,0.643336,1554.4,1554.0,6.43474]
[1743982213466,0.643336,1554.4,1554.0,6.43492]
[1743982213662,1.6673,1554.9,1554.5,6.43293]
[1743982213874,6.43254,1554.6,1554.2,6.43416]
[1743982214061,0.02,1554.9,1554.5,6.43259]
[1743982214262,6.43215,1554.7,1554.3,6.43349]
[1743982214488,6.45131,1554.9,1554.5,6.43293]
[1743982214662,0.02,1554.9,1554.6,6.43226]
[1743982214869,0.02,1554.9,1554.6,6.43224]
[1743982215068,0.02,1554.9,1554.6,12.86459]
[1743982215300,0.02,1554.9,1554.8,6.43169]
[1743982215467,0.02,1554.9,1554.7,12.86395]
[1743982215667,0.02,1554.9,1554.8,6.43169]
[1743982215869,0.02,1554.9,1554.8,8.49009]
[1743982216076,18.29369,1555.8,1555.3,6.42962]
[1743982216278,10.305,1555.8,1555.3,6.97962]
[1743982216501,0.02,1555.9,1555.3,6.97962]
[1743982217012,16.72543,1556.8,1556.3,6.42544]
[1743982217347,16.72543,1556.8,1556.2,6.42588]
[1743982217348,0.02,1556.9,1556.6,6.42417]
[1743982217458,6.42352,1556.8,1556.4,6.42501]
[1743982217659,0.02,1556.9,1556.3,0.55]
[1743982217864,0.02,1556.9,1556.7,6.42346]
[1743982218099,0.02,1556.9,1556.8,8.09846261]
[1743982218284,0.02,1556.9,1556.8,8.03423]
[1743982218614,0.02,1556.9,1556.8,8.09844927]
[1743982218765,0.02,1556.9,1556.8,1.6108]
[1743982218962,0.02,1556.9,1556.8,6.42343]
[1743982219163,0.02,1556.9,1556.8,10.92678338]
[1743982219405,18.99694515,1557.8,1556.8,10.92678338]
[1743982219406,6.41975,1557.7,1557.2,6.42159]
[1743982219577,6.42102,1557.4,1556.9,1.5563]
[1743982219772,6.42181,1557.2,1556.9,1.5563]
[1743982219977,8.01894,1557.5,1557.0,6.42242]
[1743982220207,3.429694,1557.5,1557.1,6.42198]
[1743982220373,10.293,1557.5,1557.2,6.42161]
[1743982220573,6.42095,1557.4,1556.9,1.5563]
[1743982220794,6.42226,1557.1,1556.6,6.424]
[1743982221112,6.42278,1557.0,1556.6,6.424]
[1743982221277,6.4232,1556.9,1556.5,6.42467]
[1743982221475,16.71478,1557.0,1556.5,6.42467]
[1743982221695,6.42329,1556.9,1556.5,6.42467]
[1743982221993,6.42329,1556.9,1556.5,12.84905]
[1743982222194,6.42329,1556.9,1556.1,0.48899943]
[1743982222195,3.0,1556.9,1556.1,1.6431]
[1743982222567,6.42444,1556.6,1556.1,1.6431]
[1743982222763,12.84807,1556.7,1556.1,8.0694]
[1743982222968,6.42457,1556.6,1556.1,8.0694]
[1743982223314,12.84985,1556.5,1556.1,1.6431]
[1743982223462,16.70982,1556.5,1556.1,8.06919]
[1743982223909,10.285,1556.5,1556.1,8.06917]
[1743982224106,23.13503,1556.5,1556.1,8.06917]
[1743982224309,23.13496,1556.5,1556.1,8.06917]
[1743982224635,6.42569,1556.3,1555.9,6.42699]
[1743982224832,6.42509,1556.4,1555.7,41.601]
[1743982224833,6.42626,1556.2,1555.7,6.42796]
[1743982225146,3.0,1556.4,1556.0,6.42666]
[1743982225147,9.42511,1556.4,1556.0,6.42666]
[1743982225347,6.42622,1556.2,1555.7,6.42771]
[1743982225649,6.42634,1556.1,1555.7,6.42771]
[1743982225870,3.0,1556.2,1555.7,6.42763]
[1743982226149,12.84737,1556.8,1556.4,6.42492]
[1743982226332,11.9115,1556.9,1556.1,6.42618]
[1743982226538,10.281,1556.9,1556.0,15.58655]
[1743982226737,6.42402,1556.7,1556.0,17.296115]
[1743982226909,1.0281,1556.8,1556.0,6.42672]
[1743982226910,6.42473,1556.5,1556.0,6.42672]
[1743982227109,6.42528,1556.4,1556.0,6.42652]
[1743982227354,6.42694,1556.0,1555.6,14.44514]
[1743982227550,6.42635,1556.1,1555.6,8.01694]
[1743982227855,6.42635,1556.1,1555.4,6.42918]
[1743982227856,6.42819,1555.7,1555.3,8.07782]
[1743982228160,6.42819,1555.7,1555.1,0.02]